fUST/lending_fUST_20240109
["ID","MTS","AMOUNT","RATE_DAILY","PERIOD"]
[310862004,1704754232203,-520.36428611,0.00023288,2]
[310862006,1704754232212,-467.91325065,0.00023288,2]
[310862008,1704754232221,-431.91370965,0.00023288,2]
[310862010,1704754232230,-426.61671228,0.00023288,2]
[310862012,1704754232238,-242.79982166,0.00023288,2]
[310862014,1704754232247,-1786.71225511,0.000239,2]
[310862016,1704754232258,-187.623336,0.00024482,2]
[310862018,1704754232266,-150.0,0.0002467,2]
[310862020,1704754232274,-156.9151563,0.00024973,2]
[310862022,1704754232283,-265.70132317,0.00024973,2]
[310862024,1704754232294,-19794.1674217,0.00024977,2]
[310862026,1704754232303,-287.022582,0.00024977,2]
[310862028,1704754232312,-287.022582,0.00024977,2]
[310862030,1704754232321,-244.749317,0.00024977,2]
[310862031,1704754232330,-244.749317,0.00024977,2]
[310862033,1704754232339,-4708.90909935,0.00025,2]
[310862035,1704754232348,-3924.45514904,0.0002534,2]
[310862037,1704754232357,-341.814982,0.00025684,2]
[310862039,1704754232366,-620.0035251,0.0002673,2]
[310862041,1704754232374,-500.0,0.00027396,4]
[310862043,1704754232383,-500.0,0.00027396,4]
[310862045,1704754232392,-443.12214361,0.00027396,4]
[310862047,1704754232401,-502.89091784,0.00027396,4]
[310862049,1704754232411,-203.80135332,0.00027396,4]
[310862051,1704754232420,-465.80026121,0.00027396,4]
[310862258,1704754243349,-260.1996768,0.00018046,2]
[310862259,1704754243359,-287.022582,0.00027397,2]
[310862260,1704754243369,-287.022582,0.00027397,2]
[310862262,1704754243377,-287.022582,0.00027397,2]
[310862263,1704754243386,-287.022582,0.00027397,2]
[310862264,1704754243395,-287.022582,0.00027397,2]
[310862265,1704754243405,-287.022582,0.00027397,2]
[310862266,1704754243414,-244.749317,0.00027397,2]
[310862267,1704754243423,-244.749317,0.00027397,2]
[310862268,1704754243432,-244.749317,0.00027397,2]
[310862269,1704754243441,-244.749317,0.00027397,2]
[310862270,1704754243449,-244.749317,0.00027397,2]
[310862271,1704754243458,-244.749317,0.00027397,2]
[310862272,1704754243467,-3991.91918141,0.00027397,3]
[310862273,1704754243479,-5081.15825505,0.00027397,3]
[310862372,1704755433927,-154.90705577,0.000225,2]
[310862374,1704755433937,-1433.28432588,0.000225,2]
[310862463,1704755438347,-555.49012643,0.000225,2]
[310862465,1704755438356,-1172.14414578,0.000225,2]
[310862467,1704755438366,-352.02150506,0.00022501,2]
[310862469,1704755438375,-154.90705577,0.00022501,2]
[310862471,1704755438384,-93.09194059,0.00022507,2]
[310862644,1704755443064,-61.87648182,0.00022507,2]
[310862645,1704755443074,-357.67079547,0.000229,2]
[310862656,1704755446140,-237.89995623,0.000229,2]
[310862657,1704755446149,-104.46889344,0.00026334,2]
[310862658,1704755446161,-23812.50000038,0.00026334,2]
[310862669,1704756105356,647.20755631,0.00026334,7]
[310862733,1704756632157,-686.26185494,0.00023666,2]
[310862735,1704756632167,-154.90705577,0.00023667,2]
[310862737,1704756632176,-322.68982471,0.00023667,2]
[310862739,1704756632185,-143.45332634,0.00023668,2]
[310862952,1704756638430,-208.56817872,0.00023668,2]
[310862953,1704756638440,-269.12766384,0.00023701,2]
[310862954,1704756638449,-184.995722,0.00024073,2]
[310862955,1704756638458,-411.02545166,0.00024094,2]
[310863029,1704756641187,-4006.55629343,0.00024094,2]
[310863529,1704756646382,-2353.45313545,0.00024094,2]
[310876173,1704757832325,-560.22977717,0.00021079,2]
[310876175,1704757832337,-1562.95678573,0.0002108,2]
[310876328,1704757838656,-565.21812734,0.0002108,2]
[310876330,1704757841425,-436.2529977,0.0002108,2]
[310876331,1704757841438,-4857.51015075,0.0002108,2]
[310876347,1704757846492,-2369.1084441,0.0002108,2]
[310876462,1704759040398,-170.907491,0.00018684,2]
[310876463,1704759040407,-155.69701828,0.00018847,2]
[310876464,1704759040417,-172.99502236,0.0001887,2]
[310876465,1704759040426,-2487.41500866,0.00018947,2]
[310876466,1704759040437,-1366.85697194,0.00018947,2]
[310876484,1704759041703,-4191.86073663,0.00018947,2]
[310876485,1704759041715,-4118.29630684,0.00018947,2]
[310876486,1704759041728,-12668.62480983,0.00018947,2]
[310876487,1704759041739,-1164.32026415,0.00018947,2]
[310876488,1704759041751,-6017.13425747,0.00018947,2]
[310876489,1704759041763,-998.44354782,0.00018947,2]
[310876497,1704759043665,-3739.15212404,0.00018947,2]
[310876524,1704759046700,-4252.89370392,0.00018947,2]
[310876525,1704759046711,-2249.58300417,0.0001897,2]
[310876526,1704759046760,-1674.87214487,0.0001897,2]
[310876527,1704759046769,-397.0471678,0.0001898,2]
[310876528,1704759046779,-5313.9463782,0.00018995,2]
[310876529,1704759046788,-300.83561793,0.00021049,2]
[310876530,1704759046798,-22670.17,0.00021049,3]
[310876531,1704759046807,-180.924687,0.0002105,2]
[310876532,1704759046816,-180.924687,0.0002105,2]
[310876534,1704759046825,-151.0,0.0002105,2]
[310876536,1704759046835,-151.0,0.0002105,2]
[310876538,1704759046844,-27204.2,0.00021059,3]
[310876540,1704759046854,-180.924687,0.0002106,2]
[310876542,1704759046863,-180.924687,0.0002106,2]
[310876544,1704759046872,-18808.00496823,0.00021069,2]
[310876564,1704759410345,-170.38270553,0.0001786,2]
[310876565,1704759410373,-167.14640672,0.00017861,2]
[310876566,1704759410589,-6.88834923,0.00017861,2]
[310876567,1704759433269,-178.44439822,0.00017859,2]
[310876568,1704759433295,-148.22485642,0.0001786,2]
[310876569,1704759433567,-6.66671948,0.0001786,2]
[310876570,1704759448971,-5000.0,0.00017861,2]
[310876571,1704759449160,-5000.0,0.00017861,2]
[310876572,1704759449274,-275.85996952,0.00017861,2]
[310876573,1704759451085,619.20574797,0.00017861,2]
[310876574,1704759451320,270.34277013,0.00017861,2]
[310876575,1704759451349,270.34277013,0.00017861,2]
[310876576,1704759451646,-606.82163301,0.00017861,2]
[310876577,1704759451678,-606.82163301,0.00017861,2]
[310876578,1704759451718,-3455.70762463,0.00017861,2]
[310876579,1704759463084,-5000.0,0.00017861,2]
[310876580,1704759463254,-5000.0,0.00017861,2]
[310876581,1704759463360,-275.85996952,0.00017861,2]
[310876582,1704759465796,5000.0,0.00017861,2]
[310876583,1704759465828,210.03643091,0.00017861,2]
[310876584,1704759467506,-606.82163301,0.00017861,2]
[310876585,1704759467626,-12.38411496,0.00017861,2]
[310876586,1704759482992,-5000.0,0.00017861,2]
[310876587,1704759483296,-5000.0,0.00017861,2]
[310876588,1704759483441,-275.85996952,0.00017861,2]
[310876589,1704759483804,4724.14003048,0.00017861,2]
[310876590,1704759483832,485.89640043,0.00017861,2]
[310876591,1704759485080,663.02966493,0.00017861,2]
[310876592,1704759500597,-292.08004299,0.00017861,2]
[310876593,1704759500738,-5.9608172,0.00017861,2]
[310876595,1704759502600,286.11922579,0.00017861,2]
[310876596,1704759502628,292.08004299,0.00017861,2]
[310876597,1704759502655,292.08004299,0.00017861,2]
[310876598,1704759503111,-5000.0,0.00017861,2]
[310876599,1704759503267,-3383.05118812,0.00017861,2]
[310876600,1704759506302,4600.4609329,0.00017861,2]
[310876601,1704759513523,-560.22977717,0.0001786,2]
[310876602,1704759513549,-140.58914884,0.00017861,2]
[310876603,1704759513665,-14.30242706,0.00017861,2]
[310876604,1704759515216,686.51649895,0.0001786,2]
[310876605,1704759515244,214.79331941,0.0001786,2]
[310876606,1704759520588,-292.08004299,0.00017861,2]
[310876607,1704759520736,-5.9608172,0.00017861,2]
[310876610,1704759536736,-154.8915759,0.00017861,2]
[310876611,1704759536762,-256.1736515,0.00017861,2]
[310876612,1704759536901,-8.38908627,0.00017861,2]
[310876615,1704759587124,-154.8915759,0.0001786,2]
[310876616,1704759587151,-151.77570081,0.00017861,2]
[310876617,1704759587304,-6.25851585,0.00017861,2]
[310876636,1704760146590,-154.8915759,0.00017927,2]
[310876637,1704760146614,-1584.0584241,0.00017928,2]
[310876705,1704760231721,-168.971827,0.00018483,2]
[310876707,1704760231732,-2484.01500749,0.00018962,2]
[310876709,1704760231741,-2511.34591178,0.00018963,2]
[310876711,1704760231750,-9107.83811046,0.00018964,2]
[310876713,1704760231759,-1468.9001919,0.00018969,2]
[310876715,1704760231768,-151.5247856,0.0002,2]
[310876717,1704760231777,-1421.58959989,0.00020656,2]
[310876719,1704760231786,-20639.76706088,0.00020867,2]
[310876721,1704760231795,-326.5926711,0.00021,2]
[310876723,1704760231804,-262.15091894,0.00021058,2]
[310876725,1704760231814,-333.6912038,0.00021066,2]
[310876727,1704760231823,-613.60754467,0.00021066,2]
[310876729,1704760231832,-156.76187659,0.00021067,2]
[310876731,1704760231841,-256.216698,0.00021068,2]
[310876733,1704760231851,-256.216698,0.00021068,2]
[310876735,1704760231860,-871.79394782,0.00021068,2]
[310876737,1704760231869,-294.29480218,0.00021068,2]
[310876739,1704760231882,-986.16245347,0.00021069,2]
[310876741,1704760231891,-1820.2732084,0.00021069,2]
[310876751,1704760232029,-265.70132317,0.00021069,2]
[310876753,1704760232039,-200.0,0.00021069,2]
[310876755,1704760232048,-256.216698,0.00021077,2]
[310876757,1704760232057,-256.216698,0.00021077,2]
[310876758,1704760232067,-154.8915759,0.00021077,2]
[310876759,1704760232076,-154.8915759,0.00021077,2]
[310876760,1704760232084,-6377.32282136,0.00021077,2]
[310876761,1704760232096,-1507.38957958,0.00021077,2]
[310876762,1704760232107,-6160.72538407,0.00021077,2]
[310876785,1704760238004,-7584.30734809,0.00021077,2]
[310876786,1704760238014,-205.7096511,0.00021078,2]
[310876787,1704760238023,-166.8848065,0.00021078,2]
[310876788,1704760238032,-4308.36129245,0.00021078,2]
[310876789,1704760238041,-214.84279742,0.00021078,2]
[310876790,1704760238050,-308.8561729,0.00021079,2]
[310876791,1704760238059,-2613.34569265,0.00021079,2]
[310876792,1704760238069,-55744.07852348,0.0002108,2]
[310876793,1704760238078,-1666.24071845,0.0002108,2]
[310876794,1704760238087,-156.9151563,0.0002108,2]
[310876795,1704760238096,-256.216698,0.0002108,2]
[310876796,1704760238104,-256.216698,0.0002108,2]
[310876797,1704760238114,-173.652222,0.00021918,2]
[310876798,1704760238123,-3969.7930433,0.00021918,2]
[310876799,1704760238133,-1630.28963874,0.00021991,2]
[310876800,1704760238143,-156.72230709,0.00022,2]
[310876801,1704760238152,-168.215556,0.000225,2]
[310876802,1704760238161,-256.216698,0.000225,2]
[310876803,1704760238171,-256.216698,0.000225,2]
[310876804,1704760238180,-151.0,0.000225,2]
[310876805,1704760238190,-151.0,0.000225,2]
[310876806,1704760238198,-9915.11323569,0.00023,2]
[310876807,1704760238207,-173.652222,0.000232,2]
[310876808,1704760238217,-182.83573383,0.00023288,2]
[310876809,1704760238225,-470.17895673,0.00023288,2]
[310876810,1704760238237,-500.0,0.00023288,2]
[310876811,1704760238246,-639.50240876,0.00023288,2]
[310876812,1704760238256,-566.30478996,0.00023288,2]
[310876813,1704760238265,-176.86551561,0.00023288,2]
[310876814,1704760238275,-483.53078943,0.00023288,2]
[310876815,1704760238284,-402.02119541,0.00023288,2]
[310876816,1704760238292,-500.0,0.00023288,2]
[310876817,1704760238302,-166.39361975,0.00023288,2]
[310876818,1704760238314,-182.83573383,0.00023288,2]
[310876819,1704760238326,-426.90903967,0.00023288,2]
[310876820,1704760238336,-381.48176475,0.00023288,2]
[310876821,1704760238346,-424.89968792,0.00023288,2]
[310876822,1704760238356,-364.25500028,0.00023288,2]
[310876823,1704760238367,-467.91325065,0.00023288,2]
[310876824,1704760238377,-431.91370965,0.00023288,2]
[310876825,1704760238387,-426.61671228,0.00023288,2]
[310876826,1704760238397,-242.79982166,0.00023288,2]
[310876827,1704760238408,-151.0,0.00023694,2]
[310876828,1704760238418,-306.0,0.0002389,2]
[310876829,1704760238427,-1468.9001919,0.00023969,2]
[310876830,1704760238437,-256.216698,0.00023969,2]
[310876831,1704760238446,-256.216698,0.00023969,2]
[310876832,1704760238456,-151.0,0.00023969,2]
[310876833,1704760238466,-151.0,0.00023969,2]
[310876834,1704760238476,-782.95543334,0.00024,2]
[310876835,1704760238488,-2292.16683006,0.00024,2]
[310876836,1704760238498,-620.07231889,0.00024063,2]
[310876837,1704760238508,-173.652222,0.00024482,2]
[310876838,1704760238518,-496.75251741,0.00024985,5]
[310876839,1704760238528,-1879.18318898,0.00025,2]
[310876840,1704760238540,-4708.90909935,0.00025,2]
[310876841,1704760238551,-755.57389251,0.00025,2]
[310876842,1704760238561,-256.216698,0.00025,2]
[310876843,1704760238572,-256.216698,0.00025,2]
[310876844,1704760238582,-151.0,0.00025,2]
[310876845,1704760238592,-151.0,0.00025,2]
[310876846,1704760238602,-620.00361594,0.00025267,2]
[310876847,1704760238611,-2000.0,0.000263,2]
[310876848,1704760238621,-151.0,0.00026322,2]
[310876849,1704760238631,-620.0001808,0.0002653,2]
[310876850,1704760238641,-153.0,0.00026685,2]
[310876851,1704760238650,-18891.81,0.0002699,3]
[310876852,1704760238661,-3388.41467337,0.00027,2]
[310876853,1704760238671,-256.216698,0.00027,2]
[310876854,1704760238681,-256.216698,0.00027,2]
[310876855,1704760238690,-151.0,0.00027,2]
[310876856,1704760238700,-151.0,0.00027,2]
[310876857,1704760238710,-1230.43952801,0.00027396,2]
[310876858,1704760238722,-155.0,0.00027397,2]
[310876859,1704760238734,-404.42941135,0.00027397,2]
[310876860,1704760238746,-168.971827,0.00027725,2]
[310876861,1704760238755,-190.0,0.00027752,2]
[310876862,1704760238765,-620.00000904,0.00027857,2]
[310876863,1704760238774,-500.0,0.00027952,4]
[310876864,1704760238783,-443.12214361,0.00027952,4]
[310876865,1704760238792,-500.0,0.00027952,4]
[310876866,1704760238803,-502.89091784,0.00027952,4]
[310876867,1704760238813,-274.15876806,0.00027952,4]
[310876868,1704760238823,-500.0,0.00027952,4]
[310876869,1704760238835,-500.0,0.00027952,4]
[310876870,1704760238844,-629.15785116,0.00027952,4]
[310876871,1704760238854,-158594.13474997,0.00027953,2]
[310876872,1704760238865,-256.216698,0.00027953,2]
[310876873,1704760238875,-256.216698,0.00027953,2]
[310876874,1704760238885,-151.0,0.00027953,2]
[310876875,1704760238897,-151.0,0.00027953,2]
[310876876,1704760238907,-155.15681905,0.00028,3]
[310876877,1704760238917,-155.28182379,0.00028015,2]
[310876878,1704760238926,-256.216698,0.00028053,2]
[310876879,1704760238935,-256.216698,0.00028053,2]
[310876880,1704760238945,-151.0,0.00028053,2]
[310876881,1704760238954,-182.493163,0.00028053,2]
[310876882,1704760238964,-12945.70699889,0.00028053,2]
[310876883,1704760238973,-1502.99157518,0.00028055,2]
[310876884,1704760238984,-173.56457498,0.00028147,2]
[310876885,1704760238995,-322.46837965,0.00028148,2]
[310876886,1704760239005,-155.58834319,0.00028148,2]
[310876887,1704760239015,-692.04110958,0.00028153,2]
[310876888,1704760239026,-256.216698,0.00028154,2]
[310876889,1704760239037,-256.21668897,0.00028154,2]
[310876890,1704760239047,-151.0,0.00028154,2]
[310876891,1704760239058,-15867.43030525,0.00028154,2]
[310876892,1704760239067,-151.0,0.00028156,2]
[310876893,1704760239077,-471.1218868,0.00028156,2]
[310876894,1704760239086,-525.20504904,0.00028156,2]
[310876895,1704760239095,-197.93768695,0.00028156,2]
[310876896,1704760239104,-155.38565887,0.00028156,2]
[310876897,1704760239116,-363.12196189,0.00028156,2]
[310876898,1704760239126,-176.40697611,0.00028156,2]
[310876899,1704760239135,-7858.42772256,0.00028156,2]
[310876900,1704760239144,-783.93711316,0.00028157,2]
[310876901,1704760239154,-3735.0637491,0.00028158,2]
[310876902,1704760239163,-3256.88592321,0.00028158,2]
[310876903,1704760239172,-155.12075039,0.00028158,2]
[310876904,1704760239181,-154.98623957,0.00028158,2]
[310876905,1704760239190,-658.38227285,0.00028159,2]
[310876906,1704760239199,-304.86467547,0.0002816,2]
[310876907,1704760239208,-2937.34760518,0.0002816,2]
[310876908,1704760239217,-151.0,0.0002816,2]
[310876909,1704760239226,-260.72265961,0.00028283,2]
[310876910,1704760239237,-1317.91977683,0.00028284,2]
[310876911,1704760239247,-5000.0,0.00028378,5]
[310876912,1704760239256,-5488.18329038,0.00028378,2]
[310876913,1704760239265,-151.0,0.00028378,2]
[310876914,1704760239274,-76128.14835397,0.00028389,2]
[310876915,1704760239284,-5432.56972908,0.00028421,2]
[310876916,1704760239293,-5000.0,0.00028421,5]
[310876917,1704760239302,-1380.69674582,0.00028421,2]
[310876918,1704760239311,-5000.0,0.00028432,5]
[310876919,1704760239320,-5000.0,0.0002845,5]
[310876920,1704760239328,-200.0,0.000285,4]
[310876921,1704760239337,-150.0,0.00028745,2]
[310876922,1704760239346,-155.0,0.00028767,2]
[310876923,1704760239355,-151.0,0.00028949,2]
[310876924,1704760239363,-1468.9001919,0.00028969,2]
[310876925,1704760239373,-235.87863302,0.00028999,2]
[310876926,1704760239381,-470.48780092,0.00029,2]
[310876927,1704760239390,-3126.0,0.00029,2]
[310876928,1704760239399,-620.00000045,0.00029249,2]
[310876929,1704760239408,-307.0411198,0.00029288,2]
[310876930,1704760239416,-415.8145789,0.00029452,2]
[310876931,1704760239426,-240.04730468,0.00029468,2]
[310876932,1704760239435,-1194.40467669,0.00029469,2]
[310876933,1704760239445,-176.53427933,0.00029469,2]
[310876934,1704760239454,-347.33,0.00029998,2]
[310876935,1704760239464,-347.33,0.00029998,2]
[310876936,1704760239474,-347.33,0.00029998,2]
[310876937,1704760239483,-347.33,0.00029998,2]
[310876938,1704760239493,-347.33,0.00029998,2]
[310876939,1704760239502,-347.33,0.00029998,2]
[310876940,1704760239512,-347.33,0.00029998,2]
[310876941,1704760239522,-347.33,0.00029998,2]
[310876942,1704760239531,-319661.83522,0.00029999,2]
[310876943,1704760239540,-6969.98650201,0.0003,4]
[310876944,1704760239550,-6704.33547638,0.0003,3]
[310876945,1704760239559,-156.71228935,0.00030075,2]
[310876946,1704760239568,-158.77291039,0.00030075,2]
[310876947,1704760239578,-451.26629111,0.00030135,4]
[310876948,1704760239588,-164.16278825,0.00030171,2]
[310876949,1704760239597,-344.465176,0.00030196,2]
[310876950,1704760239606,-620.00000002,0.00030712,2]
[310876951,1704760239615,-347.34,0.00030999,2]
[310876952,1704760239624,-312.65301299,0.00031,3]
[310876953,1704760239634,-103917.82088132,0.00031,4]
[310876954,1704760239643,-151.0,0.00031576,2]
[310876955,1704760239652,-153.0,0.00031699,2]
[310876956,1704760239661,-153.0,0.00031699,2]
[310876957,1704760239670,-3047.10225221,0.00032,10]
[310876958,1704760239679,-153.0,0.00032493,2]
[310876959,1704760239687,-153.0,0.00032493,2]
[310876960,1704760239696,-153.0,0.00032493,2]
[310876961,1704760239704,-153.0,0.00032493,2]
[310876962,1704760239713,-153.0,0.00032493,2]
[310876963,1704760239722,-153.0,0.00032493,2]
[310876964,1704760239731,-153.0,0.00032493,2]
[310876965,1704760239741,-153.0,0.00032493,2]
[310876966,1704760239750,-153.0,0.00032493,2]
[310876967,1704760239759,-153.0,0.00032493,2]
[310876968,1704760239768,-153.0,0.00032493,2]
[310876970,1704760239777,-153.0,0.00032493,2]
[310876971,1704760239786,-153.0,0.00032493,2]
[310876972,1704760239795,-153.0,0.00032493,2]
[310876973,1704760239804,-306.0,0.00032493,2]
[310876974,1704760239814,-153.0,0.00032521,2]
[310876975,1704760239823,-153.0,0.00032521,2]
[310876978,1704760239832,-383.70144525,0.00032876,7]
[310876981,1704760239840,-500.0,0.00032876,7]
[310876982,1704760239849,-299.72859247,0.00032876,7]
[310876983,1704760239858,-172.29479803,0.00032876,7]
[310876985,1704760239867,-182.961017,0.00032876,7]
[310876988,1704760239880,-163.49218489,0.00032876,7]
[310876991,1704760239889,-182.09986625,0.00032876,7]
[310876992,1704760239898,-156.10928583,0.00032876,7]
[310876993,1704760239907,-500.0,0.00032876,7]
[310876994,1704760239917,-215.52467908,0.00032876,7]
[310876996,1704760239926,-596.86838837,0.00032876,7]
[310876998,1704760239934,-580.61907604,0.00032876,7]
[310877000,1704760239943,-500.0,0.00032876,7]
[310877001,1704760239952,-500.0,0.00032876,2]
[310877002,1704760239960,-500.0,0.00032876,2]
[310877003,1704760239969,-500.0,0.00032876,2]
[310877004,1704760239978,-500.0,0.00032876,2]
[310877005,1704760239989,-500.0,0.00032876,2]
[310877006,1704760239998,-500.0,0.00032876,2]
[310877007,1704760240007,-500.0,0.00032876,2]
[310877008,1704760240016,-500.0,0.00032876,2]
[310877009,1704760240025,-500.0,0.00032876,2]
[310877010,1704760240034,-500.0,0.00032876,2]
[310877011,1704760240043,-500.0,0.00032876,2]
[310877012,1704760240052,-500.0,0.00032876,2]
[310877013,1704760240061,-500.0,0.00032876,2]
[310877014,1704760240069,-500.0,0.00032876,2]
[310877015,1704760240078,-500.0,0.00032876,2]
[310877016,1704760240087,-500.0,0.00032876,2]
[310877017,1704760240097,-461.14581349,0.00032876,2]
[310877018,1704760240105,-428.1570142,0.00032986,2]
[310877019,1704760240117,-162.0,0.00033,2]
[310877020,1704760240126,-347.34,0.00033245,2]
[310877021,1704760240135,-9287.84491232,0.00033246,5]
[310877022,1704760240144,-130871.64024483,0.000333,2]
[310877028,1704760240350,-2334.89005073,0.000333,2]
[310877030,1704760240360,-300.0,0.000335,17]
[310877032,1704760240369,-1138.62994925,0.000337,4]
[310877034,1704760240380,-1738.93771186,0.000337,4]
[310877036,1704760240396,-681.32860443,0.000337,4]
[310877038,1704760240409,-28540.03533992,0.000337,4]
[310877044,1704760240755,-12923.41042188,0.000337,4]
[310877045,1704760240765,-1000.0,0.00034,7]
[310877046,1704760240774,-151.0,0.00034203,2]
[310877047,1704760240783,-181.0548709,0.00034247,2]
[310877048,1704760240792,-5000.0,0.000345,5]
[310877049,1704760240801,-2674.222358,0.00034521,2]
[310877050,1704760240809,-5000.0,0.00034796,7]
[310877051,1704760240818,-3156.22200338,0.000348,7]
[310877052,1704760240829,-1056.03690816,0.00034896,7]
[310877053,1704760240839,-729.71955724,0.00034896,4]
[310877054,1704760240850,-161.52679336,0.00034896,4]
[310877055,1704760240862,-165.49712597,0.00034896,4]
[310877056,1704760240872,-154.90705577,0.000349,2]
[310877057,1704760240882,-4668.84892918,0.00034933,2]
[310877058,1704760240892,-16406.38050569,0.0003499,2]
[310877059,1704760240905,-408.80569769,0.0003499,2]
[310877288,1704761431970,-154.90705577,0.00022895,2]
[310877290,1704761431981,-326.5926711,0.00022896,2]
[310877292,1704761431992,-244.75934163,0.00022899,2]
[310877294,1704761432001,-246.70973152,0.00022998,2]
[310877386,1704761438226,-2237.30527597,0.00022998,2]
[310877388,1704761438236,-2991.89800169,0.00022999,2]
[310877390,1704761438246,-1409.8467124,0.00023,2]
[310877392,1704761438255,-782.95543334,0.00024,2]
[310877394,1704761438265,-2353.4531355,0.00024173,2]
[310877395,1704761438274,-4300.0,0.00024371,2]
[310877397,1704761438284,-317.89656314,0.00024985,5]
[310877399,1704761438294,-1125.36113303,0.00025,2]
[310877401,1704761438303,-1705.81009391,0.00025,2]
[310877402,1704761438313,-4708.90909935,0.00025,2]
[310877403,1704761438323,-174.741013,0.00026292,2]
[310877405,1704761438332,-786.5989779,0.0002698,2]
[310877407,1704761438342,-150.0,0.000273,2]
[310877408,1704761438351,-10322.45950109,0.00028432,2]
[310877410,1704761438360,-12870.78985623,0.00028432,2]
[310877411,1704761438370,-200.0,0.00029,4]
[310877413,1704761438379,-3126.0,0.00029,2]
[310877414,1704761438388,-280.0128254,0.00030252,2]
[310877416,1704761438398,-4505.0327371,0.00031497,4]
[310877417,1704761438408,-266.89043853,0.00033225,4]
[310877418,1704761438417,-442.85465547,0.00033225,4]
[310877419,1704761438426,-1018.92359478,0.00033225,4]
[310877420,1704761438435,-17391.58,0.00033226,3]
[310877421,1704761438445,-559.63716454,0.00033236,4]
[310877422,1704761438453,-19398.57192987,0.00033237,4]
[310877496,1704761441073,-161.0,0.00033,2]
[310877497,1704761441083,-3384.0536182,0.00033237,4]
[310877521,1704761443008,-2430.08346508,0.00033237,4]
[310877522,1704761443019,-4103.35709357,0.00033237,4]
[310877523,1704761443030,-8566.61346514,0.00033237,4]
[310877524,1704761443041,-1419.6476816,0.00033237,4]
[310877595,1704761482259,-575.628214,0.00035616,120]
[310877597,1704761512934,-355.45540158,0.00038,120]
[310877598,1704761512970,-794.90477023,0.000389,120]
[310877599,1704761512997,-3696.97070925,0.00039,120]
[310877600,1704761530586,1492.63446283,0.00038,120]
[310877608,1704761555254,431.72116,0.00035616,120]
[310877619,1704761604024,-160.34759728,0.0004,120]
[310877620,1704761604043,-298.14059231,0.0004,120]
[310877621,1704761604063,-51665.72645809,0.0004,120]
[310877630,1704761659172,-310.0,0.00041,120]
[310877632,1704761674222,-431.72116,0.00041553,120]
[310877633,1704761674246,-2317.57425297,0.00042,120]
[310877635,1704761721352,1660.10396659,0.00042,120]
[310877636,1704761723596,11902.09213221,0.00043,120]
[310877648,1704761822304,-9828.18896571,0.000439,120]
[310877649,1704761822326,-20715.84463055,0.0004399,120]
[310877655,1704761920281,1071.6,0.00044,120]
[310877665,1704762005392,215.86058,0.00035616,120]
[310877666,1704762005618,215.86058,0.00041553,120]
[310877673,1704762099679,-411.86924586,0.00044,120]
[310877674,1704762099698,-3578.0,0.00044111,120]
[310877675,1704762116460,-72869.75512054,0.000448,120]
[310877909,1704762632155,-154.90705577,0.00023967,2]
[310877910,1704762632164,-3384.52624971,0.00023967,2]
[310877911,1704762632174,-1465.57106943,0.00023968,2]
[310877912,1704762632183,-975.60037361,0.00023968,2]
[310877913,1704762632196,-379.31200667,0.00023973,2]
[310877914,1704762632206,-384.4765782,0.00023998,2]
[310877915,1704762632215,-299.16343385,0.00024,2]
[310877916,1704762632253,-483.79199949,0.00024,2]
[310877917,1704762632262,-841.07632782,0.00028376,2]
[310877992,1704762638479,-268.8008022,0.00028376,2]
[310877994,1704762638491,-363.19027444,0.00028376,2]
[310878019,1704762641255,-999.67338624,0.00028376,2]
[310878020,1704762641267,-4936.45737204,0.00028415,2]
[310878021,1704762641277,-2631.3678885,0.00028442,2]
[310878022,1704762641286,-3126.0,0.00029,2]
[310878023,1704762641296,-216.475746,0.00029223,2]
[310878024,1704762641305,-1590.67018566,0.00030239,2]
[310878025,1704762641315,-171.6935401,0.00030263,2]
[310878026,1704762641325,-987.38578467,0.00031496,4]
[310878027,1704762641336,-5000.0,0.00032666,7]
[310878028,1704762641346,-5000.0,0.00032666,7]